bitfinex-derivatives/quotes_ETHF0:USTF0_20250422
["timestamp","ask_amount","ask_price","bid_price","bid_amount"]
[1745293636429,0.015,1579.3,1579.2,54.48371327]
[1745293636827,0.015,1579.3,1579.2,53.98303]
[1745293637230,0.015,1579.3,1579.2,60.30503]
[1745293638333,0.015,1579.3,1579.2,57.19083]
[1745293638533,0.015,1579.3,1579.2,52.19083]
[1745293640136,6.337,1579.3,1579.2,52.19083]
[1745293641130,0.015,1579.3,1579.2,52.19083]
[1745293642937,0.015,1579.3,1579.2,48.98303]
[1745293658641,0.9331,1579.3,1579.2,48.07893]
[1745293659450,0.9181,1579.3,1579.2,48.07893]
[1745293669356,1.783,1579.4,1579.3,1.26635]
[1745293669557,2.6828,1579.4,1579.3,1.26635]
[1745293670256,9.0048,1579.4,1579.3,1.26635]
[1745293671154,9.0048,1579.4,1579.3,3.05145]
[1745293673259,2.6828,1579.4,1579.3,3.05145]
[1745293673956,7.6828,1579.4,1579.1,5.0023]
[1745293674159,2.598,1579.3,1579.1,7.8722]
[1745293674351,1.7524,1579.2,1579.1,9.13871]
[1745293676055,8.0744,1579.2,1579.1,9.13871]
[1745293677261,1.7524,1579.2,1579.1,9.13871]
[1745293679163,8.0744,1579.2,1579.1,9.13871]
[1745293681765,12.28562614,1579.2,1579.1,9.13871]
[1745293681969,10.53322614,1579.2,1579.1,9.13871]
[1745293683163,4.21122614,1579.2,1579.1,17.34651]
[1745293683567,2.85555614,1579.2,1579.1,17.34651]
[1745293683761,8.45422186,1579.4,1579.3,1.26635]
[1745293683960,8.45422186,1579.4,1579.3,9.47415]
[1745293686968,8.45422186,1579.4,1579.3,4.47415]
[1745293689063,0.00949395,1579.5,1579.4,1.26627]
[1745293689263,0.00949395,1579.5,1579.4,9.03467]
[1745293690866,3.95e-06,1579.5,1579.4,14.03467]
[1745293691062,8.45422186,1579.8,1579.7,1.26603]
[1745293691269,8.45422186,1579.8,1579.7,5.56503]
[1745293691460,8.45422186,1579.8,1579.7,10.56503]
[1745293691665,8.45422186,1579.8,1579.7,14.03443]
[1745293692773,8.45422186,1579.8,1579.7,9.03443]
[1745293692968,0.00949396,1579.9,1579.8,1.26595]
[1745293693168,6.33149396,1579.9,1579.8,6.22515]
[1745293696965,7.21129396,1579.9,1579.8,10.52315]
[1745293697170,0.00949396,1579.9,1579.8,10.52315]
[1745293698274,6.33149396,1579.9,1579.8,10.52315]
[1745293698674,6.33149396,1579.9,1579.8,7.31535]
[1745293701178,6.33149396,1579.9,1579.8,10.52315]
[1745293702180,0.00949396,1579.9,1579.8,10.52315]
[1745293703283,6.33149396,1579.9,1579.8,10.52315]
[1745293704179,0.00949396,1579.9,1579.8,10.52315]
[1745293705783,3.96e-06,1579.9,1579.8,10.52315]
[1745293705981,3.96e-06,1579.9,1579.8,15.52315]
[1745293707074,3.96e-06,1579.9,1579.8,7.31535]
[1745293707577,3.96e-06,1579.9,1579.8,10.52315]
[1745293708182,6.32200396,1579.9,1579.8,10.52315]
[1745293709779,6.32200396,1579.9,1579.8,11.03359721]
[1745293709971,6.32200396,1579.9,1579.8,10.52315]
[1745293711287,3.96e-06,1579.9,1579.8,10.52315]
[1745293712080,6.32200396,1579.9,1579.8,10.52315]
[1745293713187,3.96e-06,1579.9,1579.8,10.52315]
[1745293714073,3.96e-06,1579.9,1579.8,11.03402597]
[1745293715087,0.015,1580.0,1579.9,1.26587]
[1745293715274,0.8687,1580.3,1580.2,1.26563]
[1745293715479,2.6184,1580.5,1580.4,1.26547]
[1745293715786,3.5468,1580.5,1580.4,42.06547]
[1745293715985,8.5468,1580.5,1580.4,42.06547]
[1745293716288,9.8688,1580.5,1580.4,42.06547]
[1745293719586,1.26563,1580.3,1579.9,3.2078]
[1745293719786,1.26563,1580.3,1580.1,5.55868]
[1745293719787,1.7777,1580.2,1580.1,5.55868]
[1745293719986,3.5547,1580.2,1580.1,5.55868]
[1745293720186,9.8767,1580.2,1580.1,46.35868]
[1745293720887,9.8767,1580.2,1580.1,46.35871]
[1745293722890,9.8767,1580.2,1580.1,5.55871]
[1745293723291,9.8767,1580.2,1580.1,46.35871]
[1745293724094,9.8767,1580.2,1580.1,49.56651]
[1745293724294,8.0997,1580.2,1580.1,50.44721]
[1745293724591,8.0997,1580.2,1580.1,49.56651]
[1745293725288,8.0997,1580.2,1580.1,46.35871]
[1745293725692,9.853,1580.2,1580.1,46.35871]
[1745293727590,9.853,1580.2,1580.1,49.56651]
[1745293727989,7.2477,1580.2,1580.1,49.56651]
[1745293728189,0.9257,1580.2,1580.1,49.56651]
[1745293728798,2.6807,1580.4,1580.3,1.26555]
[1745293729197,9.0027,1580.4,1580.3,1.26555]
[1745293732703,1.26558,1580.3,1580.1,46.35864]
[1745293732892,0.9109,1580.2,1580.1,45.093]
[1745293733093,0.9109,1580.2,1580.1,4.293]
[1745293733391,1.26579,1580.0,1579.9,4.293]
[1745293733596,2.10937,1580.1,1579.9,5.55887]
[1745293733802,1.846,1580.0,1579.9,5.55887]
[1745293733996,1.846,1580.0,1579.9,4.293]
[1745293734194,9.43379,1580.0,1579.9,4.293]
[1745293735003,8.168,1580.0,1579.9,5.55887]
[1745293736004,8.168,1580.0,1579.9,7.34877]
[1745293736503,8.168,1580.0,1579.9,10.55657]
[1745293736703,6.322,1580.0,1579.9,11.46097]
[1745293737406,6.322,1580.0,1579.9,8.25317]
[1745293737902,8.0646,1580.0,1579.9,5.55887]
[1745293740202,6.322,1580.0,1579.9,5.55887]
[1745293740507,6.322,1580.0,1579.9,10.44987]
[1745293740706,6.322,1580.0,1579.9,11.32167]
[1745293741605,6.322,1580.0,1579.9,16.32167]
[1745293742107,6.32032733,1580.2,1580.1,1.26571]
[1745293743111,12.64232733,1580.2,1580.1,1.26571]
[1745293743310,12.64232733,1580.2,1580.1,1.6845]
[1745293743510,14.38652733,1580.2,1580.1,2.95021]
[1745293744312,8.0662,1580.2,1580.1,2.95021]
[1745293744512,9.33183,1580.2,1580.0,1.26573]
[1745293744812,3.4484,1580.1,1580.0,1.26573]
[1745293745005,3.4484,1580.1,1579.9,4.293]
[1745293745201,1.7194,1580.0,1579.9,1.26587]
[1745293745409,1.7194,1580.0,1579.9,5.55687]
[1745293745609,1.7194,1580.0,1579.9,7.25857]
[1745293746314,9.30719,1580.0,1579.9,5.9927]
[1745293746611,8.0414,1580.0,1579.9,7.25857]
[1745293748714,9.30719,1580.0,1579.9,5.9927]
[1745293749014,8.0414,1580.0,1579.9,7.25857]
[1745293750621,6.322,1580.0,1579.9,7.25857]
[1745293751406,8.0966,1580.0,1579.9,7.25857]
[1745293756213,6.322,1580.0,1579.9,7.25857]
[1745293757125,3.5726,1580.1,1580.0,1.26579]
[1745293757421,3.5726,1580.1,1580.0,3.01629]
[1745293757622,1.729,1580.1,1580.0,3.01629]
[1745293758020,0.8783,1580.1,1580.0,3.88699]
[1745293758217,10.38742733,1580.2,1580.1,1.26571]
[1745293758525,10.38742733,1580.2,1580.1,3.93851]
[1745293758526,3.2078,1580.2,1580.1,3.93851]
[1745293759021,6.32032733,1580.3,1580.2,1.26563]
[1745293759221,6.32032733,1580.3,1580.2,7.24433]
[1745293760218,12.64232733,1580.3,1580.2,7.24433]
[1745293761722,13.90787733,1580.3,1580.2,5.9787]
[1745293761925,17.47567733,1580.3,1580.2,5.9787]
[1745293762317,11.15535,1580.3,1580.2,4.291]
[1745293763017,11.15535,1580.3,1580.2,5.9917]
[1745293763216,11.15535,1580.3,1580.2,7.25733]
[1745293763419,9.8898,1580.3,1580.2,7.25733]
[1745293763836,7.1801,1580.3,1580.2,7.25733]
[1745293764222,6.322,1580.3,1580.2,7.25733]
[1745293765022,6.322,1580.3,1580.2,8.14673]
[1745293772533,6.322,1580.3,1580.2,11.35453]
[1745293781838,11.322,1580.3,1580.0,4.0785]
[1745293782140,3.90457,1580.2,1580.1,4.287]
[1745293782336,1.26579,1580.0,1579.9,4.287]
[1745293782538,3.2078,1580.0,1579.9,4.287]
[1745293782937,6.23679,1580.0,1579.9,4.287]
[1745293783126,12.55879,1580.0,1579.9,4.287]
[1745293783327,11.293,1580.0,1579.9,4.287]
[1745293783734,11.293,1580.0,1579.9,5.55287]
[1745293784042,12.55879,1580.0,1579.9,4.287]
[1745293785741,12.55879,1580.0,1579.9,5.55287]
[1745293785938,11.293,1580.0,1579.9,5.55287]
[1745293787644,12.55879,1580.0,1579.9,5.55287]
[1745293789046,9.35099,1580.0,1579.9,5.55287]
[1745293789248,8.0852,1580.0,1579.9,7.25197]
[1745293790148,1.7632,1580.0,1579.9,7.25197]
[1745293790945,3.02899,1580.0,1579.9,7.25197]
[1745293791143,9.35099,1580.0,1579.9,7.25197]
[1745293791846,8.0852,1580.0,1579.9,7.25197]
[1745293793040,8.0852,1580.0,1579.9,8.11947]
[1745293793240,1.7632,1580.0,1579.9,8.11947]
[1745293795150,8.0852,1580.0,1579.9,8.11947]
[1745293797150,1.7632,1580.0,1579.9,8.11947]
[1745293797363,12.55940733,1580.2,1580.0,1.26572]
[1745293797542,14.36430733,1580.2,1580.1,1.26571]
[1745293798244,1.26571,1580.1,1580.0,3.02795]
[1745293798453,3.07061,1580.1,1580.0,3.02795]
[1745293798641,1.8049,1580.1,1580.0,3.02795]
[1745293798847,3.07061,1580.1,1580.0,3.02795]
[1745293799043,9.39261,1580.1,1580.0,3.02795]
[1745293799345,8.1269,1580.1,1580.0,3.02795]
[1745293800848,9.39261,1580.1,1580.0,3.02795]
[1745293801446,8.1269,1580.1,1580.0,3.02795]
[1745293802448,6.322,1580.1,1580.0,3.02795]
[1745293804251,19.35092733,1580.2,1580.1,1.26571]
[1745293804450,19.35092733,1580.2,1580.1,3.05891]
[1745293805152,18.51795894,1580.2,1580.1,3.05891]
[1745293805757,17.25232894,1580.2,1580.1,3.05891]
[1745293806053,14.64142894,1580.2,1580.1,3.05891]
[1745293806252,10.54372894,1580.2,1580.1,8.05891]
[1745293806655,10.54372894,1580.2,1580.1,8.94721]
[1745293807160,4.22172894,1580.2,1580.1,8.94721]
[1745293807350,4.22172894,1580.2,1580.1,3.94721]
[1745293808363,4.22172894,1580.2,1580.1,4.82701]
[1745293808653,6.322,1580.4,1580.3,1.26555]
[1745293808860,6.322,1580.4,1580.3,5.55055]
[1745293809250,6.322,1580.4,1580.3,6.43035]
[1745293814260,6.322,1580.4,1580.3,8.24345]
[1745293819458,8.45422186,1580.7,1580.6,1.26531]
[1745293819655,0.42050663,1580.7,1580.6,8.75711]
[1745293819851,0.42050663,1580.7,1580.6,13.75711]
[1745293820060,0.42050663,1580.7,1580.6,55.46051]
[1745293820254,6.74250663,1580.7,1580.6,57.29621]
[1745293821158,5.36653663,1580.7,1580.6,57.29621]
[1745293821357,3.93832663,1580.7,1580.6,57.29621]
[1745293822162,12.63651143,1581.1,1580.8,1.26515]
[1745293822363,12.63651143,1581.1,1580.8,4.47295]
[1745293822559,12.63651143,1581.1,1580.8,9.47295]
[1745293822759,12.63651143,1581.1,1580.8,52.10865]
[1745293823265,12.63651143,1581.1,1580.8,52.57681858]
[1745293823764,3.6053,1581.3,1580.9,3.16269]
[1745293823961,3.6053,1581.3,1581.1,1.26491]
[1745293824164,9.9273,1581.3,1581.2,2.94073]
[1745293826666,13.1351,1581.3,1581.2,2.94073]
[1745293826873,9.9273,1581.3,1581.2,2.94073]
[1745293828270,9.9273,1581.3,1581.2,1.6759]
[1745293828465,9.9273,1581.3,1581.1,1.26487]
[1745293828466,11.19208,1581.3,1581.0,8.3756]
[1745293828663,1.7816,1581.2,1581.0,10.2109]
[1745293828866,1.7816,1581.2,1581.1,1.26491]
[1745293829162,8.1036,1581.2,1581.0,11.47583]
[1745293829363,4.47273,1581.1,1581.0,4.283]
[1745293829674,1.265,1581.0,1580.8,49.55592]
[1745293829872,4.7382,1581.0,1580.8,49.55592]
[1745293830074,11.0602,1581.0,1580.8,49.55592]
[1745293830269,1.7141,1580.9,1580.8,49.55592]
[1745293831078,8.0361,1580.9,1580.8,49.55592]
[1745293831274,8.0361,1580.9,1580.8,45.083]
[1745293831275,9.30117,1580.9,1580.8,45.083]
[1745293831579,8.0361,1580.9,1580.8,45.083]
[1745293831782,8.0361,1580.9,1580.8,45.08]
[1745293832481,8.0361,1580.9,1580.8,46.34515]
[1745293833368,8.0361,1580.9,1580.8,45.08]
[1745293833570,9.30117,1580.9,1580.8,45.08]
[1745293833869,8.0361,1580.9,1580.8,46.34515]
[1745293834678,9.30117,1580.9,1580.8,45.08]
[1745293835683,9.30117,1580.9,1580.8,5.54515]
[1745293835684,8.0361,1580.9,1580.8,5.54515]
[1745293835884,9.30117,1580.9,1580.8,4.28]
[1745293836180,8.0361,1580.9,1580.8,5.54515]
[1745293838186,9.30117,1580.9,1580.8,4.28]
[1745293838584,8.0361,1580.9,1580.8,5.54515]
[1745293841688,9.30117,1580.9,1580.8,4.28]
[1745293841887,19.40661,1580.9,1580.5,142.21829396]
[1745293842184,1.26531,1580.6,1580.5,0.00949396]
[1745293842588,4.42891,1580.5,1580.1,4.28]
[1745293842882,1.26561,1580.3,1580.1,5.54566]
[1745293843088,2.5843,1580.2,1580.1,5.54566]
[1745293843589,7.05773,1580.2,1580.1,4.28]
[1745293843888,7.92413,1580.2,1580.1,4.28]
[1745293844187,14.24613,1580.2,1580.1,4.28]
[1745293845282,14.24613,1580.2,1580.1,5.54571]
[1745293845492,14.24613,1580.2,1580.1,1.26571]
[1745293846796,14.24613,1580.2,1580.0,3.13253396]
[1745293848296,1.8007,1580.1,1580.0,3.13253396]
[1745293849098,8.1227,1580.1,1580.0,3.13253396]
[1745293852100,6.322,1580.1,1580.0,3.13253396]
[1745293852705,7.58771,1580.1,1580.0,1.86679396]
[1745293852898,7.58771,1580.1,1580.0,0.00949396]
[1745293853102,9.33051,1580.1,1580.0,0.00949396]
[1745293854395,6.322,1580.1,1580.0,2.99748396]
[1745293854897,7.58771,1580.1,1580.0,0.00949396]
[1745293855102,7.58771,1580.1,1580.0,1.73169396]
[1745293855402,10.34281,1580.1,1580.0,1.73169396]
[1745293856398,9.0771,1580.1,1580.0,2.99748396]
[1745293856604,10.34281,1580.1,1580.0,1.73169396]
[1745293858700,10.34281,1580.1,1580.0,0.00949396]
[1745293858905,11.19971,1580.1,1580.0,0.00949396]
[1745293860205,11.19971,1580.1,1580.0,1.27528396]
[1745293860407,9.36331,1580.1,1580.0,3.04278396]
[1745293860608,7.2407,1580.1,1580.0,3.04278396]
[1745293860814,7.2407,1580.1,1580.0,4.79628396]
[1745293862515,8.50641,1580.1,1580.0,4.79628396]
[1745293863215,8.50641,1580.1,1580.0,3.91888396]
[1745293863517,11.18731,1580.1,1580.0,3.91888396]
[1745293863914,11.18731,1580.1,1580.0,2.65309396]
[1745293864217,11.18731,1580.1,1580.0,1.77699396]
[1745293864617,11.18731,1580.1,1580.0,0.00949396]
[1745293865710,1.26579,1580.0,1579.9,4.28]
[1745293865914,1.26603,1579.7,1579.6,1.7875]
[1745293866106,3.2078,1579.8,1579.7,1.26603]
[1745293866413,4.47379,1579.8,1579.7,1.26603]
[1745293866820,5.38009,1579.8,1579.6,7.34204396]
[1745293867117,1.701,1579.7,1579.6,7.34204396]
[1745293868816,9.1918,1580.0,1579.6,14.28379396]
[1745293869008,5.984,1580.0,1579.9,1.26587]
[1745293869213,4.131,1580.2,1580.1,1.26571]
[1745293869418,3.2078,1580.2,1580.1,1.26571]
[1745293869821,3.2078,1580.2,1580.1,3.08071]
[1745293869822,5.0241,1580.2,1580.1,3.08071]
[1745293870118,12.61173,1580.2,1580.1,3.08071]
[1745293870419,12.61173,1580.2,1580.1,1.815]
[1745293870915,11.3461,1580.2,1580.1,3.08071]
[1745293871113,8.1383,1580.2,1580.1,3.08071]
[1745293872326,6.322,1580.2,1580.1,3.08071]
[1745293872828,6.322,1580.2,1580.1,43.88071]
[1745293874129,6.33149396,1580.3,1580.2,1.26563]
[1745293874424,9.39270396,1580.3,1580.1,40.8]
[1745293874626,1.7956,1580.2,1580.1,40.8]
[1745293875222,8.1176,1580.2,1580.1,42.06571]
[1745293875619,1.26571,1580.1,1580.0,3.564]
[1745293875919,3.05451,1580.1,1580.0,3.564]
[1745293876126,8.1108,1580.1,1580.0,45.62979]
[1745293877131,1.7888,1580.1,1580.0,45.62979]
[1745293878132,8.1108,1580.1,1580.0,45.62979]
[1745293881432,8.1108,1580.1,1580.0,41.7125]
[1745293881633,10.29441,1580.1,1580.0,41.7125]
[1745293882825,12.2365,1580.1,1579.8,0.8454]
[1745293883026,1.26587,1579.9,1579.7,8.31309]
[1745293883324,1.7487,1579.8,1579.7,49.11309]
[1745293885423,1.7487,1579.8,1579.7,8.31309]
[1745293886634,3.01465,1579.8,1579.7,8.31309]
[1745293886935,3.01465,1579.8,1579.7,7.0471]
[1745293887236,3.01465,1579.8,1579.7,8.31313]
[1745293887537,1.7487,1579.8,1579.7,8.31313]
[1745293887935,1.7487,1579.8,1579.7,4.279]
[1745293887936,3.01465,1579.8,1579.7,4.279]
[1745293888138,3.90785,1579.8,1579.7,4.279]
[1745293888733,3.90785,1579.8,1579.7,5.54503]
[1745293888937,3.90785,1579.8,1579.7,1.26603]
[1745293888938,9.8919,1579.8,1579.7,1.26603]
[1745293889234,16.2139,1579.8,1579.7,1.26603]
[1745293889435,1.26603,1579.7,1579.6,43.85648396]
[1745293889638,3.87993,1579.7,1579.6,42.59039396]
[1745293890036,3.87993,1579.7,1579.6,0.00949396]
[1745293890232,15.30884,1579.7,1579.3,8.90399]
[1745293890535,1.26624,1579.5,1579.4,1.26627]
[1745293890733,1.6814,1579.6,1579.3,48.4377]
[1745293890937,2.14995,1579.5,1579.3,48.8653]
[1745293891140,1.6814,1579.4,1579.3,48.8653]
[1745293892034,2.94767,1579.4,1579.3,48.8653]
[1745293892337,1.6814,1579.4,1579.3,48.8653]
[1745293893132,2.94767,1579.4,1579.3,48.8653]
[1745293893340,1.6814,1579.4,1579.3,48.8653]
[1745293894643,2.94767,1579.4,1579.3,48.8653]
[1745293895537,1.6814,1579.4,1579.3,48.8653]
[1745293896743,13.05497,1579.4,1579.0,1.26658]
[1745293896936,1.26659,1579.0,1578.9,3.5526]
[1745293897142,1.26659,1579.0,1578.9,4.80997972]
[1745293897736,3.00789,1579.0,1578.9,4.80997972]
[1745293897936,1.7413,1579.0,1578.9,4.80997972]
[1745293898834,3.2078,1579.2,1579.1,1.26651]
[1745293899039,3.19853972,1579.2,1579.1,1.26651]
[1745293904450,3.96726,1579.3,1579.1,1.26651]
[1745293904652,3.96726,1579.3,1579.2,3.5628]
[1745293906253,3.96726,1579.3,1579.2,4.82923]
[1745293907555,3.06036,1579.3,1579.2,4.82923]
[1745293910357,3.06036,1579.3,1579.2,3.91643]
[1745293910658,1.26636,1579.3,1579.2,3.91643]
[1745293911047,6.33184,1579.4,1579.3,1.26635]
[1745293911258,6.33184,1579.4,1579.3,2.99215]
[1745293911861,6.33184,1579.4,1579.3,1.7258]
[1745293912058,1.26635,1579.3,1579.2,2.18529]
[1745293912358,1.26643,1579.2,1579.1,1.26645]
[1745293912657,1.26643,1579.2,1579.1,2.11235]
[1745293913160,1.26651,1579.1,1579.0,2.96326]
[1745293913361,3.07021,1579.1,1579.0,2.96326]
[1745293913863,1.26659,1579.0,1578.9,2.11254]
[1745293914054,3.07029,1579.0,1578.9,0.83663972]
[1745293914260,1.26667,1578.9,1578.8,43.77293396]
[1745293914463,3.84557,1578.9,1578.8,43.77293396]
[1745293914659,2.5789,1578.9,1578.8,43.77293396]
[1745293915659,1.7253,1578.9,1578.8,43.77293396]
[1745293916062,1.26665,1579.0,1578.9,1.26667]
[1745293916249,2.99195,1579.0,1578.9,3.01467]
[1745293916664,1.7253,1579.0,1578.9,3.01467]
[1745293917464,9.65216,1579.2,1579.1,1.26651]
[1745293917762,7.16659972,1579.2,1579.1,1.26651]
[1745293919157,1.26651,1579.1,1579.0,2.97973]
[1745293920262,5.00123972,1579.2,1579.1,1.26651]
[1745293920459,10.82141711,1579.5,1579.4,1.26627]
[1745293920660,12.59345711,1579.5,1579.4,1.26627]
[1745293920856,11.32726711,1579.5,1579.4,1.26627]
[1745293921455,9.55516711,1579.5,1579.4,3.00977]
[1745293921856,3.21729396,1579.5,1579.4,3.00977]
[1745293928067,4.97329396,1579.5,1579.4,3.00977]
[1745293929368,6.23948396,1579.5,1579.3,0.9143]
[1745293929565,6.23948396,1579.5,1579.3,2.659]
[1745293929868,6.23948396,1579.5,1579.4,1.26627]
[1745293930064,4.48348396,1579.5,1579.4,1.26627]
[1745293930367,9.53929396,1579.5,1579.4,1.26627]
[1745293930664,9.53929396,1579.5,1579.4,3.01097]
[1745293931259,0.00949396,1579.5,1579.4,3.01097]
[1745293932063,0.00949396,1579.5,1579.4,14.33297]
[1745293932258,9.54567315,1579.8,1579.7,1.26603]
[1745293932460,0.19519127,1579.8,1579.7,1.26603]
[1745293932768,0.19519127,1579.8,1579.7,9.47383]
[1745293932953,0.19519127,1579.8,1579.7,52.97373]
[1745293934167,0.19519127,1579.8,1579.7,49.76593]
[1745293934768,0.19519127,1579.8,1579.7,47.97373]
[1745293935468,0.92489396,1579.9,1579.8,1.26595]
[1745293936266,0.92489396,1579.9,1579.8,3.92775]
[1745293939469,0.00949396,1579.9,1579.8,3.92775]
[1745293942058,2.60479396,1579.9,1579.8,3.92775]
[1745293942262,8.92679396,1579.9,1579.8,3.92775]
[1745293943185,2.60479396,1579.9,1579.8,3.92775]
[1745293944874,2.60479396,1579.9,1579.7,41.6457]
[1745293944875,3.87066396,1579.9,1579.7,42.91169]
[1745293945168,1.6734,1579.8,1579.7,42.91169]
[1745293945368,2.5605,1579.8,1579.7,42.91169]
[1745293945670,2.5605,1579.8,1579.7,44.65589]
[1745293949276,2.5605,1579.8,1579.7,43.81019]
[1745293949866,2.5605,1579.8,1579.7,42.06599]
[1745293950065,8.8825,1579.8,1579.7,42.06599]
[1745293950365,8.8825,1579.8,1579.7,1.26599]
[1745293951175,2.5605,1579.8,1579.7,1.26599]
[1745293954673,1.26603,1579.7,1579.6,0.00949396]
[1745293954878,2.98453,1579.7,1579.6,0.00949396]
[1745293956078,9.30653,1579.7,1579.6,0.00949396]
[1745293956774,8.0405,1579.7,1579.6,1.27560396]
[1745293958179,1.7185,1579.7,1579.6,1.27560396]
[1745293958890,1.7185,1579.7,1579.6,2.20030396]
[1745293961572,2.98453,1579.7,1579.6,1.27560396]
[1745293962082,1.7185,1579.7,1579.6,1.27560396]
[1745293962783,2.98453,1579.7,1579.6,1.27560396]
[1745293962980,1.7185,1579.7,1579.6,1.27560396]
[1745293963784,2.98453,1579.7,1579.6,1.27560396]
[1745293966480,1.7185,1579.7,1579.6,1.27560396]
[1745293968479,4.0949,1579.8,1579.7,1.26603]
[1745293968678,7.03535,1579.8,1579.7,2.95053]
[1745293969087,13.35735,1579.8,1579.7,2.95053]
[1745293969582,12.0914,1579.8,1579.6,0.00949396]
[1745293969782,3.08873,1579.7,1579.6,0.00949396]
[1745293970189,9.41073,1579.7,1579.6,0.00949396]
[1745293972390,9.41073,1579.7,1579.6,1.27560396]
[1745293973092,3.08873,1579.7,1579.6,1.27560396]
[1745293973895,9.07273,1579.7,1579.6,1.27560396]
[1745293974888,7.8067,1579.7,1579.6,1.27560396]
[1745293975388,7.8067,1579.7,1579.6,3.05530396]
[1745293975586,9.07273,1579.7,1579.6,3.05530396]
[1745293978377,7.25003,1579.7,1579.6,3.05530396]
[1745293979486,8.95733,1579.7,1579.6,3.05530396]
[1745293979687,8.95733,1579.7,1579.6,1.27560396]
[1745293979895,2.97333,1579.7,1579.6,1.27560396]
[1745293980794,2.97333,1579.7,1579.6,3.05480396]
[1745293985095,2.97333,1579.7,1579.6,1.78869396]
[1745293986099,9.29533,1579.7,1579.6,1.78869396]
[1745293986302,9.29533,1579.7,1579.6,3.05480396]
[1745293987104,2.97333,1579.7,1579.6,3.05480396]
[1745293988303,14.7819915,1579.9,1579.8,1.26595]
[1745293988913,14.7819915,1579.9,1579.8,3.05945]
[1745293990216,8.4599915,1579.9,1579.8,3.05945]
[1745293991019,8.4599915,1579.9,1579.8,1.7935]
[1745293991213,8.4599915,1579.9,1579.8,3.05945]
[1745293991517,9.7258615,1579.9,1579.8,3.5915]
[1745293992215,18.7579615,1579.9,1579.8,3.5915]
[1745293992715,10.30746396,1579.9,1579.8,3.5915]
[1745293993218,11.24376396,1579.9,1579.8,3.5915]
[1745293994314,9.97789396,1579.9,1579.6,1.27557396]
[1745293994516,3.0456,1579.8,1579.7,1.8108]
[1745293994818,1.26603,1579.7,1579.6,3.05397396]
[1745293995021,3.04563,1579.7,1579.6,4.86477396]
[1745293995210,9.36763,1579.7,1579.6,3.59869396]
[1745293995712,9.36763,1579.7,1579.6,0.00949396]
[1745293997216,9.36763,1579.7,1579.6,1.76849396]
[1745293997528,9.36763,1579.7,1579.6,3.03460396]
[1745293998017,7.58803,1579.7,1579.6,3.03460396]
[1745293998917,6.322,1579.7,1579.6,3.03460396]
[1745293999222,6.27972,1579.8,1579.6,3.03460396]
[1745293999424,6.27972,1579.8,1579.7,1.759]
[1745293999822,12.62045345,1579.8,1579.7,1.759]
[1745294000724,1.26603,1579.7,1579.6,0.00949396]
[1745294000919,3.10413,1579.7,1579.6,1.71539396]
[1745294001323,3.10413,1579.7,1579.6,2.98150396]
[1745294002125,10.81453345,1579.8,1579.7,1.26603]
[1745294002323,10.81453345,1579.8,1579.7,3.90173]
[1745294003422,4.4738,1579.8,1579.7,3.90173]
[1745294003622,6.1915,1579.8,1579.7,3.90173]
[1745294005125,6.1915,1579.8,1579.7,2.6357]
[1745294005326,1.26603,1579.7,1579.6,1.27555396]
[1745294005527,2.98373,1579.7,1579.6,3.10715396]
[1745294006424,4.4738,1579.8,1579.7,1.26603]
[1745294006627,4.4738,1579.8,1579.7,3.05043]
[1745294006820,6.2008,1579.8,1579.7,3.05043]
[1745294007630,2.993,1579.8,1579.7,3.05043]
[1745294009934,2.993,1579.8,1579.7,1.26603]
[1745294014440,1.727,1579.8,1579.7,1.26603]
[1745294014741,2.99295,1579.8,1579.7,1.26603]
[1745294019139,9.31495,1579.8,1579.7,1.26603]
[1745294019328,9.31495,1579.8,1579.7,2.13673]
[1745294020929,1.26603,1579.7,1579.6,0.02429396]
[1745294021131,3.89703,1579.7,1579.6,0.02429396]
[1745294021327,3.89703,1579.7,1579.6,0.00949396]
[1745294022227,10.21903,1579.7,1579.6,0.00949396]
[1745294023940,16.55976345,1579.7,1579.6,0.00949396]
[1745294026842,22.54376345,1579.7,1579.6,0.00949396]
[1745294027140,25.75156345,1579.7,1579.6,0.00949396]
[1745294027343,1.26635,1579.3,1579.2,4.4742]
[1745294027533,3.16539,1579.6,1579.3,1.26635]
[1745294027534,1.26633,1579.4,1579.3,1.26635]
[1745294027735,1.26633,1579.4,1579.3,40.8]
[1745294027934,3.99013,1579.4,1579.3,40.8]
[1745294028143,1.26635,1579.3,1579.2,7.23297]
[1745294028346,1.26643,1579.2,1579.1,2.22235]
[1745294028543,1.26643,1579.2,1579.1,2.23184396]
[1745294028846,1.26643,1579.2,1579.1,43.03184396]
[1745294029041,1.7613,1579.2,1579.1,44.85124396]
[1745294029343,8.0833,1579.2,1579.1,44.85124396]
[1745294029544,9.34973,1579.2,1579.1,44.85124396]
[1745294031145,9.34973,1579.2,1579.1,43.58479396]
[1745294031452,9.34973,1579.2,1579.1,44.85130396]
[1745294032246,3.02773,1579.2,1579.1,44.85130396]
[1745294035255,1.7613,1579.2,1579.1,44.85130396]
[1745294035953,3.02773,1579.2,1579.1,44.85130396]
[1745294036348,1.7613,1579.2,1579.1,44.85130396]
[1745294037055,5.41922,1579.3,1579.2,1.26643]
[1745294037355,7.25302,1579.3,1579.2,2.98533]
[1745294038362,7.25302,1579.3,1579.2,1.7189]
[1745294038562,7.25302,1579.3,1579.2,2.98533]
[1745294039466,7.25302,1579.3,1579.2,3.94323]
[1745294039862,7.25302,1579.3,1579.2,2.6768]
[1745294040267,7.25302,1579.3,1579.2,3.94323]
[1745294041862,4.04522,1579.3,1579.2,3.94323]
[1745294047867,4.04515,1579.3,1579.2,3.94323]